fUSD/lending_fUSD_20250616
["ID","MTS","AMOUNT","RATE_DAILY","PERIOD"]
[366163332,1750095050669,-465.82726332,0.00016053,2]
[366163333,1750095050678,-490.0,0.00016053,2]
[366163334,1750095050689,-490.0,0.00016053,2]
[366163335,1750095050698,-490.0,0.00016053,2]
[366163336,1750095050707,-490.0,0.00016053,2]
[366163337,1750095050716,-490.0,0.00016053,2]
[366163338,1750095050726,-490.0,0.00016053,2]
[366163339,1750095050735,-490.0,0.00016053,2]
[366163340,1750095050744,-490.0,0.00016053,2]
[366163341,1750095050754,-490.0,0.00016053,2]
[366163342,1750095050764,-490.0,0.00016053,2]
[366163343,1750095050777,-490.0,0.00016053,2]
[366163344,1750095050786,-490.0,0.00016053,2]
[366163345,1750095050796,-490.0,0.00016053,2]
[366163346,1750095050806,-490.0,0.00016053,2]
[366163347,1750095050817,-490.0,0.00016053,2]
[366163348,1750095050826,-490.0,0.00016053,2]
[366163349,1750095050836,-490.0,0.00016053,2]
[366163350,1750095050847,-490.0,0.00016053,2]
[366163351,1750095050856,-490.0,0.00016053,2]
[366163352,1750095050865,-500.0,0.00016053,2]
[366163353,1750095050874,-500.0,0.00016053,2]
[366163354,1750095050884,-150.0,0.00016053,2]
[366163355,1750095050894,-150.0,0.00016053,2]
[366163356,1750095050904,-150.0,0.00016053,2]
[366163357,1750095050913,-151.0,0.00016053,2]
[366163358,1750095050922,-151.0,0.00016053,2]
[366163359,1750095050931,-151.0,0.00016053,2]
[366163360,1750095050941,-151.0,0.00016053,2]
[366163361,1750095050951,-151.0,0.00016053,2]
[366163362,1750095050961,-249.732252,0.00016053,2]
[366163363,1750095050970,-496.417587,0.00016053,2]
[366163364,1750095050979,-496.417587,0.00016053,2]
[366163365,1750095050988,-151.0,0.00016053,2]
[366163366,1750095050997,-151.0,0.00016053,2]
[366163367,1750095051006,-151.0,0.00016053,2]
[366163368,1750095051016,-151.0,0.00016053,2]
[366163369,1750095051025,-151.0,0.00016053,2]
[366163370,1750095051035,-151.0,0.00016053,2]
[366163371,1750095051044,-151.0,0.00016053,2]
[366163372,1750095051053,-151.0,0.00016053,2]
[366163373,1750095051062,-500.0,0.00016053,2]
[366163374,1750095051072,-490.0,0.00016053,2]
[366163375,1750095051083,-490.0,0.00016053,2]
[366163376,1750095051093,-490.0,0.00016053,2]
[366163377,1750095051103,-151.0,0.00016053,2]
[366163378,1750095051113,-869.45,0.00016053,2]
[366163379,1750095051122,-490.0,0.00016053,2]
[366163380,1750095051132,-450.0,0.00016053,2]
[366163381,1750095051142,-820.01,0.00016053,2]
[366163382,1750095051151,-151.0,0.00016053,2]
[366163383,1750095051160,-923.35,0.00016053,2]
[366163384,1750095051170,-439.53066861,0.00016053,2]
[366163385,1750095051179,-490.0,0.00016053,2]
[366163386,1750095051188,-490.0,0.00016053,2]
[366163387,1750095051198,-490.0,0.00016053,2]
[366163388,1750095051207,-151.0,0.00016054,2]
[366163389,1750095051217,-490.0,0.00016054,2]
[366163390,1750095051227,-491.1211152,0.00016054,2]
[366163391,1750095051236,-490.97025637,0.00016054,2]
[366163392,1750095051245,-490.0,0.00016054,2]
[366163393,1750095051255,-490.0,0.00016054,2]
[366163394,1750095051265,-490.0,0.00016054,2]
[366163395,1750095051275,-462.78680253,0.00016054,2]
[366163396,1750095051286,-421.8877497,0.00016054,2]
[366163397,1750095051295,-491.49293841,0.00016054,2]
[366163398,1750095051304,-491.5086276,0.00016054,2]
[366163399,1750095051314,-217.98616263,0.00016054,2]
[366163400,1750095051323,-490.62979229,0.00016054,2]
[366163401,1750095051333,-491.08888575,0.00016054,2]
[366163402,1750095051344,-490.0,0.00016054,2]
[366163403,1750095051354,-490.0,0.00016054,2]
[366163404,1750095051363,-490.0,0.00016054,2]
[366163405,1750095051374,-490.0,0.00016054,2]
[366163406,1750095051384,-490.0,0.00016054,2]
[366163407,1750095051394,-1145.36698895,0.00016054,2]
[366163408,1750095051403,-200.0,0.00016054,2]
[366163409,1750095051413,-490.0,0.00016054,2]
[366163410,1750095051422,-151.0,0.00016054,2]
[366163411,1750095051431,-151.0,0.00016054,2]
[366163412,1750095051441,-200.0,0.00016054,2]
[366163413,1750095051451,-151.0,0.00016054,2]
[366163414,1750095051460,-490.0,0.00016054,2]
[366163415,1750095051469,-490.0,0.00016054,2]
[366163416,1750095051479,-1345.52,0.00016054,2]
[366163417,1750095051489,-845.88,0.00016054,2]
[366163418,1750095051499,-1311.85,0.00016054,2]
[366163419,1750095051509,-490.0,0.00016054,2]
[366163420,1750095051518,-490.0,0.00016054,2]
[366163421,1750095051528,-151.0,0.00016054,2]
[366163422,1750095051537,-490.0,0.00016054,2]
[366163423,1750095051547,-151.0,0.00016054,2]
[366163424,1750095051559,-490.0,0.00016054,2]
[366163425,1750095051568,-151.0,0.00016054,2]
[366163426,1750095051577,-150.0,0.00016054,2]
[366163427,1750095051586,-935.46,0.00016054,2]
[366163428,1750095051595,-886.36,0.00016054,2]
[366163429,1750095051604,-1190.56,0.00016054,2]
[366163430,1750095051614,-490.0,0.00016054,2]
[366163431,1750095051624,-1204.62,0.00016054,2]
[366163432,1750095051633,-151.0,0.00016054,2]
[366163433,1750095051643,-151.0,0.00016054,2]
[366163434,1750095051652,-618.79,0.00016054,2]
[366163435,1750095051661,-490.0,0.00016054,2]
[366163436,1750095051670,-490.0,0.00016054,2]
[366163437,1750095051679,-875.17,0.00016054,2]
[366163438,1750095051689,-654.22,0.00016054,2]
[366163439,1750095051698,-1006.68,0.00016054,2]
[366163440,1750095051708,-586.82199468,0.00016054,2]
[366163441,1750095051717,-1050.35,0.00016054,2]
[366163442,1750095051726,-246.781126,0.00016054,2]
[366163443,1750095051736,-246.781126,0.00016054,2]
[366163444,1750095051746,-493.78762477,0.00016054,2]
[366163445,1750095051755,-490.0,0.00016054,2]
[366163446,1750095051767,-490.0,0.00016054,2]
[366163447,1750095051781,-283.474556,0.00016054,2]
[366163448,1750095051791,-319.10552237,0.00016054,2]
[366163449,1750095051800,-283.474556,0.00016054,2]
[366163450,1750095051810,-151.0,0.00016054,2]
[366163451,1750095051820,-190.198923,0.00016054,2]
[366163452,1750095051829,-190.198923,0.00016054,2]
[366163453,1750095051840,-200.0,0.00016054,2]
[366163454,1750095051850,-381.644848,0.00016054,2]
[366163455,1750095051859,-381.644848,0.00016054,2]
[366163456,1750095051870,-200.0,0.00016054,2]
[366163457,1750095051879,-200.0,0.00016054,2]
[366163458,1750095051888,-200.0,0.00016054,2]
[366163459,1750095051898,-202.9815,0.00016054,2]
[366163460,1750095051908,-151.0,0.00016054,2]
[366163461,1750095051918,-151.0,0.00016054,2]
[366163462,1750095051928,-226.966096,0.00016054,2]
[366163463,1750095051937,-151.0,0.00016054,2]
[366163464,1750095051948,-226.966096,0.00016054,2]
[366163465,1750095051959,-443.766481,0.00016054,2]
[366163466,1750095051968,-443.766481,0.00016054,2]
[366163467,1750095051978,-175.545141,0.00016054,2]
[366163468,1750095051988,-175.545141,0.00016054,2]
[366163469,1750095051998,-914.766594,0.00016054,2]
[366163470,1750095052008,-914.766594,0.00016054,2]
[366163471,1750095052018,-151.0,0.00016054,2]
[366163472,1750095052028,-151.0,0.00016054,2]
[366163473,1750095052038,-153.538623,0.00016054,2]
[366163474,1750095052047,-151.0,0.00016054,2]
[366163475,1750095052057,-200.0,0.00016054,2]
[366163476,1750095052066,-500.0,0.00016054,2]
[366163477,1750095052077,-151.0,0.00016055,2]
[366163478,1750095052086,-151.0,0.00016055,2]
[366163479,1750095052095,-151.0,0.00016055,2]
[366163480,1750095052104,-152.000739,0.00016055,2]
[366163481,1750095052114,-151.0,0.00016055,2]
[366163482,1750095052123,-151.0,0.00016055,2]
[366163483,1750095052133,-151.0,0.00016055,2]
[366163484,1750095052142,-151.0,0.00016055,2]
[366163485,1750095052151,-151.0,0.00016055,2]
[366163486,1750095052161,-151.0,0.00016055,2]
[366163487,1750095052170,-151.0,0.00016055,2]
[366163488,1750095052180,-151.0,0.00016055,2]
[366163489,1750095052190,-151.0,0.00016055,2]
[366163490,1750095052200,-151.0,0.00016055,2]
[366163491,1750095052209,-151.0,0.00016055,2]
[366163492,1750095052220,-151.0,0.00016055,2]
[366163493,1750095052229,-151.0,0.00016055,2]
[366163494,1750095052239,-229.185774,0.00016055,2]
[366163495,1750095052249,-151.0,0.00016055,2]
[366163496,1750095052258,-151.0,0.00016055,2]
[366163497,1750095052268,-151.0,0.00016055,2]
[366163498,1750095052277,-151.0,0.00016055,2]
[366163499,1750095052287,-151.0,0.00016055,2]
[366163500,1750095052297,-151.0,0.00016055,2]
[366163501,1750095052306,-151.0,0.00016055,2]
[366163502,1750095052315,-151.0,0.00016055,2]
[366163503,1750095052325,-151.0,0.00016055,2]
[366163504,1750095052335,-151.0,0.00016055,2]
[366163505,1750095052345,-241.148886,0.00016055,2]
[366163506,1750095052356,-241.148886,0.00016055,2]
[366163507,1750095052367,-151.178491,0.00016055,2]
[366163508,1750095052376,-151.0,0.00016055,2]
[366163509,1750095052386,-151.0,0.00016055,2]
[366163510,1750095052396,-151.0,0.00016055,2]
[366163511,1750095052406,-2044.877,0.00016055,2]
[366163512,1750095052416,-151.0,0.00016055,2]
[366163513,1750095052426,-6816.64388979,0.00016055,2]
[366163514,1750095052435,-320.70802654,0.00016056,2]
[366163515,1750095052445,-150.0,0.00016058,2]
[366163516,1750095052454,-150.0,0.00016058,2]
[366163517,1750095052464,-150.0,0.00016058,2]
[366163518,1750095052474,-292.41870439,0.00016058,2]
[366163519,1750095052483,-150.0,0.00016058,2]
[366163520,1750095052493,-150.0,0.00016058,2]
[366163521,1750095052503,-150.0,0.00016058,2]
[366163522,1750095052512,-150.0,0.00016058,2]
[366163523,1750095052522,-150.0,0.00016058,2]
[366163524,1750095052532,-150.0,0.00016058,2]
[366163525,1750095052542,-150.0,0.00016058,2]
[366163526,1750095052551,-167.14706428,0.00016058,2]
[366163527,1750095052560,-500.0,0.00016058,2]
[366163528,1750095052569,-150.0,0.00016058,2]
[366163529,1750095052579,-500.0,0.00016058,2]
[366163530,1750095052588,-286.44216813,0.00016058,2]
[366163531,1750095052597,-500.0,0.00016058,2]
[366163532,1750095052607,-150.0,0.00016058,2]
[366163533,1750095052616,-150.0,0.00016058,2]
[366163534,1750095052626,-150.0,0.00016058,2]
[366163535,1750095052636,-150.0,0.00016058,2]
[366163536,1750095052646,-150.0,0.00016058,2]
[366163537,1750095052655,-500.0,0.00016058,2]
[366163538,1750095052664,-151.04768963,0.00016058,2]
[366163539,1750095052674,-500.0,0.00016058,2]
[366163540,1750095052683,-150.0,0.00016058,2]
[366163541,1750095052692,-150.0,0.00016058,2]
[366163542,1750095052702,-150.0,0.00016058,2]
[366163543,1750095052712,-500.0,0.00016058,2]
[366163544,1750095052722,-150.0,0.00016058,2]
[366163545,1750095052732,-150.0,0.00016058,2]
[366163546,1750095052741,-150.0,0.00016058,2]
[366163547,1750095052750,-150.0,0.00016058,2]
[366163548,1750095052760,-500.0,0.00016058,2]
[366163549,1750095052773,-500.0,0.00016058,2]
[366163550,1750095052782,-150.0,0.00016058,2]
[366163551,1750095052792,-500.0,0.00016058,2]
[366163552,1750095052801,-150.0,0.00016058,2]
[366163553,1750095052811,-150.53337332,0.00016058,2]
[366163554,1750095052820,-152.07766656,0.00016058,2]
[366163555,1750095052829,-150.44098988,0.00016058,2]
[366163556,1750095052839,-150.0,0.00016058,2]
[366163557,1750095052849,-1178.63825,0.00016059,2]
[366163558,1750095052860,-5435.7625811,0.00016077,2]
[366163559,1750095052872,-150.54630424,0.00016085,2]
[366163560,1750095052881,-150.0,0.00016085,2]
[366163561,1750095052891,-150.0,0.00016085,2]
[366163562,1750095052900,-181.1392547,0.00016085,2]
[366163563,1750095052911,-150.0,0.00016085,2]
[366163564,1750095052921,-150.0,0.00016085,2]
[366163565,1750095052930,-150.33809444,0.00016085,2]
[366163566,1750095052940,-500.0,0.00016085,2]
[366163567,1750095052949,-531.55931939,0.00016085,2]
[366163568,1750095052958,-400.0,0.00016085,2]
[366163569,1750095052968,-150.0,0.00016085,2]
[366163570,1750095052978,-150.0,0.00016085,2]
[366163571,1750095052987,-150.0,0.00016085,2]
[366163572,1750095052998,-150.0,0.00016085,2]
[366163573,1750095053007,-500.0,0.00016085,2]
[366163574,1750095053017,-600.0,0.00016085,2]
[366163575,1750095053026,-150.0,0.00016085,2]
[366163576,1750095053036,-150.0,0.00016085,2]
[366163577,1750095053046,-150.0,0.00016085,2]
[366163578,1750095053056,-502.07311355,0.00016085,2]
[366163579,1750095053065,-150.0,0.00016085,2]
[366163580,1750095053075,-150.0,0.00016085,2]
[366163581,1750095053085,-150.0,0.00016085,2]
[366163582,1750095053249,-150.0,0.00016085,2]
[366163583,1750095053264,-500.0,0.00016085,2]
[366163584,1750095053275,-500.0,0.00016085,2]
[366163585,1750095053285,-600.0,0.00016085,2]
[366163586,1750095053295,-150.96623907,0.00016085,2]
[366163587,1750095053306,-150.0,0.00016085,2]
[366163588,1750095053316,-6192.14,0.0001609,2]
[366163589,1750095053327,-906.71,0.000161,2]
[366163590,1750095053336,-163.46,0.000161,2]
[366163591,1750095053346,-2524.82941417,0.00016101,2]
[366163592,1750095053356,-151.0,0.00016101,2]
[366163593,1750095053366,-151.0,0.00016101,2]
[366163594,1750095053376,-423.82908471,0.0001611,2]
[366163595,1750095053386,-150.0,0.00016113,2]
[366163596,1750095053396,-150.0,0.00016113,2]
[366163597,1750095053406,-150.0,0.00016113,2]
[366163598,1750095053417,-150.0,0.00016113,2]
[366163599,1750095053427,-500.0,0.00016113,2]
[366163600,1750095053437,-150.0,0.00016113,2]
[366163601,1750095053447,-150.0,0.00016113,2]
[366163602,1750095053457,-150.0,0.00016113,2]
[366163603,1750095053470,-150.0,0.00016113,2]
[366163604,1750095053480,-500.0,0.00016113,2]
[366163605,1750095053490,-201.31927875,0.00016113,2]
[366163606,1750095053500,-150.0,0.00016113,2]
[366163607,1750095053510,-150.0,0.00016113,2]
[366163608,1750095053520,-150.0,0.00016113,2]
[366163609,1750095053532,-150.0,0.00016113,2]
[366163610,1750095053542,-500.0,0.00016113,2]
[366163611,1750095053552,-500.0,0.00016113,2]
[366163612,1750095053562,-151.32938418,0.00016113,2]
[366163613,1750095053572,-152.0,0.00016115,3]
[366163614,1750095053582,-151.0,0.00016116,2]
[366163615,1750095053592,-9999.99,0.00016116,2]
[366163616,1750095053601,-163.19697233,0.00016118,2]
[366163617,1750095053612,-5435.7625811,0.0001613,2]
[366163618,1750095053622,-701.46,0.00016133,2]
[366163619,1750095053631,-490.0,0.00016133,2]
[366163620,1750095053641,-622.67,0.00016133,2]
[366163621,1750095053651,-1003.02,0.00016133,2]
[366163622,1750095053661,-990.32,0.00016133,2]
[366163623,1750095053671,-1053.57,0.00016133,2]
[366163624,1750095053681,-490.0,0.00016133,2]
[366163625,1750095053691,-743.36,0.00016133,2]
[366163626,1750095053701,-603.33,0.00016133,2]
[366163627,1750095053711,-693.43,0.00016133,2]
[366163628,1750095053722,-525.21,0.00016133,2]
[366163629,1750095053732,-1432.22,0.00016133,2]
[366163630,1750095053742,-630.76,0.00016133,2]
[366163631,1750095053753,-4195.8,0.00016133,2]
[366163632,1750095053766,-490.0,0.00016133,2]
[366163633,1750095053778,-490.0,0.00016133,2]
[366163634,1750095053788,-829.0,0.00016133,2]
[366163635,1750095053798,-2668.72,0.00016133,2]
[366163636,1750095053809,-525.78,0.00016133,2]
[366163637,1750095053819,-855.42,0.00016133,2]
[366163638,1750095053829,-767.47,0.00016133,2]
[366163639,1750095053840,-847.11,0.00016133,2]
[366163640,1750095053850,-760.67,0.00016133,2]
[366163641,1750095053860,-602.57,0.00016133,2]
[366163642,1750095053871,-5517.00868513,0.00016139,2]
[366163643,1750095053882,-151.0,0.0001614,2]
[366163644,1750095053892,-151.0,0.0001614,2]
[366163645,1750095053902,-150.0,0.0001614,2]
[366163646,1750095053912,-152.05656481,0.0001614,2]
[366163647,1750095053922,-150.0,0.0001614,2]
[366163648,1750095053932,-150.0,0.0001614,2]
[366163649,1750095053943,-150.0,0.0001614,2]
[366163650,1750095053952,-250.0,0.0001614,2]
[366163651,1750095053962,-150.0,0.0001614,2]
[366163652,1750095053973,-150.0,0.0001614,2]
[366163653,1750095053982,-150.0,0.0001614,2]
[366163654,1750095053992,-200.0,0.0001614,2]
[366163655,1750095054002,-150.0,0.0001614,2]
[366163656,1750095054012,-150.0,0.0001614,2]
[366163657,1750095054023,-250.0,0.0001614,2]
[366163658,1750095054033,-500.0,0.0001614,2]
[366163659,1750095054043,-2618.2481025,0.00016156,2]
[366163660,1750095054053,-320.70802654,0.00016161,2]
[366163661,1750095054063,-500.0,0.00016164,2]
[366163662,1750095054073,-300.0,0.00016164,2]
[366163663,1750095054083,-151.0,0.00016165,2]
[366163664,1750095054093,-496.417587,0.00016165,2]
[366163665,1750095054103,-496.417587,0.00016165,2]
[366163666,1750095054113,-151.0,0.00016165,2]
[366163667,1750095054124,-151.0,0.00016165,2]
[366163668,1750095054134,-151.0,0.00016165,2]
[366163669,1750095054144,-151.0,0.00016165,2]
[366163670,1750095054154,-151.0,0.00016165,2]
[366163671,1750095054164,-151.0,0.00016165,2]
[366163672,1750095054174,-151.0,0.00016165,2]
[366163673,1750095054184,-151.0,0.00016165,2]
[366163674,1750095054195,-251.47347771,0.00016168,2]
[366163675,1750095054204,-200.0,0.00016168,2]
[366163676,1750095054214,-153.07533106,0.00016168,2]
[366163677,1750095054224,-200.0,0.00016168,2]
[366163678,1750095054234,-500.0,0.00016168,2]
[366163679,1750095054244,-151.0,0.00016172,2]
[366163680,1750095054255,-151.0,0.00016173,2]
[366163681,1750095054265,-151.0,0.00016173,2]
[366163682,1750095054275,-151.0,0.00016173,2]
[366163683,1750095054285,-151.0,0.00016173,2]
[366163684,1750095054295,-151.0,0.00016173,2]
[366163685,1750095054316,-151.0,0.00016173,2]
[366163686,1750095054329,-151.0,0.00016173,2]
[366163687,1750095054341,-151.0,0.00016173,2]
[366163688,1750095054353,-151.0,0.00016173,2]
[366163689,1750095054364,-151.0,0.00016173,2]
[366163690,1750095054376,-212.264132,0.00016173,2]
[366163691,1750095054387,-151.0,0.00016173,2]
[366163692,1750095054399,-151.0,0.00016173,2]
[366163693,1750095054410,-237.562623,0.00016173,2]
[366163694,1750095054422,-237.562623,0.00016173,2]
[366163695,1750095054432,-2000.0,0.0001618,2]
[366163696,1750095054443,-500.0,0.0001618,2]
[366163697,1750095054454,-200.0,0.0001618,2]
[366163698,1750095054464,-5435.7625811,0.00016182,2]
[366163699,1750095054475,-833.8156298,0.0001619,2]
[366163700,1750095054485,-431.51059726,0.0001619,2]
[366163701,1750095054495,-202.0,0.0001619,2]
[366163702,1750095054505,-163.46,0.00016192,2]
[366163703,1750095054515,-163.46,0.00016192,2]
[366163704,1750095054526,-163.46,0.00016192,2]
[366163705,1750095054537,-163.46,0.00016192,2]
[366163706,1750095054547,-163.46,0.00016192,2]
[366163707,1750095054557,-163.46,0.00016192,2]
[366163708,1750095054568,-547.84,0.00016192,2]
[366163709,1750095054578,-163.46,0.00016192,2]
[366163710,1750095054588,-2329.34,0.00016192,2]
[366163711,1750095054599,-163.46,0.00016192,2]
[366163712,1750095054609,-163.46,0.00016192,2]
[366163713,1750095054620,-163.46,0.00016192,2]
[366163714,1750095054630,-500.0,0.00016195,2]
[366163715,1750095054641,-642.24,0.00016199,2]
[366163716,1750095054651,-769.91,0.00016199,2]
[366163717,1750095054663,-151.0,0.000162,2]
[366163718,1750095054673,-151.0,0.000162,2]
[366163719,1750095054690,-151.853439,0.000162,2]
[366163720,1750095054700,-151.0,0.000162,2]
[366163721,1750095054710,-151.0,0.000162,2]
[366163722,1750095054720,-190.198923,0.000162,2]
[366163723,1750095054730,-190.198923,0.000162,2]
[366163724,1750095054739,-381.644848,0.000162,2]
[366163725,1750095054756,-381.644848,0.000162,2]
[366163726,1750095054768,-204.362561,0.000162,2]
[366163727,1750095054779,-151.0,0.000162,2]
[366163728,1750095054791,-226.966096,0.000162,2]
[366163729,1750095054801,-151.0,0.000162,2]
[366163730,1750095054816,-226.966096,0.000162,2]
[366163731,1750095054826,-443.766481,0.000162,2]
[366163732,1750095054837,-443.766481,0.000162,2]
[366163733,1750095054848,-914.766594,0.000162,2]
[366163734,1750095054859,-914.766594,0.000162,2]
[366163735,1750095054870,-151.0,0.000162,2]
[366163736,1750095054881,-219.48302284,0.000162,2]
[366163737,1750095054892,-5857.69066016,0.000162,2]
[366163738,1750095054903,-5857.69065993,0.000162,2]
[366163739,1750095054913,-5857.69065993,0.000162,2]
[366163740,1750095054924,-5857.69065993,0.000162,2]
[366163741,1750095054935,-5857.69065993,0.000162,2]
[366163742,1750095054945,-5857.69065993,0.000162,2]
[366163743,1750095054956,-5857.69065993,0.000162,2]
[366163744,1750095054967,-5857.69065993,0.000162,2]
[366163745,1750095054978,-5857.69065993,0.0001621,2]
[366163746,1750095054988,-2715.12328229,0.00016211,2]
[366163747,1750095054999,-200.0,0.00016215,2]
[366163748,1750095055010,-200.0,0.00016215,2]
[366163749,1750095055020,-200.0,0.00016215,2]
[366163750,1750095055031,-1135.99,0.00016215,2]
[366163751,1750095055042,-857.26257,0.00016215,2]
[366163752,1750095055052,-1273.07,0.00016215,2]
[366163753,1750095055063,-5528.89,0.00016215,2]
[366163754,1750095055074,-734.49,0.00016215,2]
[366163755,1750095055084,-907.913297,0.00016215,2]
[366163756,1750095055095,-1196.37,0.00016215,2]
[366163757,1750095055105,-490.0,0.00016215,2]
[366163758,1750095055116,-490.0,0.00016215,2]
[366163759,1750095055127,-891.04,0.00016215,2]
[366163760,1750095055137,-696.87,0.00016215,2]
[366163761,1750095055148,-1081.83,0.00016215,2]
[366163762,1750095055159,-1045.12,0.00016215,2]
[366163763,1750095055170,-490.0,0.00016215,2]
[366163764,1750095055181,-2738.94,0.00016215,2]
[366163765,1750095055198,-490.0,0.00016215,2]
[366163766,1750095055209,-738.18,0.00016215,2]
[366163767,1750095055221,-490.0,0.00016215,2]
[366163768,1750095055232,-4292.59,0.00016215,2]
[366163769,1750095055242,-1125.97,0.00016215,2]
[366163770,1750095055253,-1919.47,0.00016215,2]
[366163771,1750095055264,-1156.99,0.00016215,2]
[366163772,1750095055275,-1803.57,0.00016215,2]
[366163773,1750095055285,-2063.39,0.00016215,2]
[366163774,1750095055296,-1683.68,0.00016215,2]
[366163775,1750095055307,-515.93,0.00016215,2]
[366163776,1750095055318,-1816.22,0.00016215,2]
[366163777,1750095055328,-490.0,0.00016215,2]
[366163778,1750095055339,-7084.32,0.00016215,2]
[366163779,1750095055349,-769.91,0.00016215,2]
[366163780,1750095055360,-1844.57,0.00016215,2]
[366163781,1750095055371,-1419.55,0.00016215,2]
[366163782,1750095055382,-200.0,0.00016215,2]
[366163783,1750095055392,-1716.5,0.00016215,2]
[366163784,1750095055402,-490.0,0.00016215,2]
[366163785,1750095055413,-2198.2,0.00016215,2]
[366163786,1750095055423,-922.47,0.00016215,2]
[366163787,1750095055433,-1757384.01540639,0.00016215,2]
[366163788,1750095055444,-32964.5430267,0.00016215,2]
[366163789,1750095055454,-151.0,0.00016216,2]
[366163790,1750095055465,-211.71623,0.00016216,2]
[366163791,1750095055474,-151.0,0.00016216,2]
[366163792,1750095055484,-151.0,0.00016216,2]
[366163793,1750095055494,-151.0,0.00016216,2]
[366163794,1750095055504,-151.0,0.00016216,2]
[366163795,1750095055514,-151.0,0.00016216,2]
[366163796,1750095055525,-151.0,0.00016216,2]
[366163797,1750095055964,-151.0,0.00016216,2]
[366163798,1750095055995,-281.577411,0.00016216,2]
[366163799,1750095056005,-151.0,0.00016216,2]
[366163800,1750095056015,-151.0,0.00016216,2]
[366163801,1750095056025,-151.0,0.00016216,2]
[366163802,1750095056035,-151.0,0.00016216,2]
[366163803,1750095056045,-490.0,0.00016216,2]
[366163804,1750095056055,-490.0,0.00016216,2]
[366163805,1750095056068,-151.0,0.00016216,2]
[366163806,1750095056078,-173.68808729,0.00016216,2]
[366163807,1750095056087,-151.0,0.00016216,2]
[366163808,1750095056096,-490.0,0.00016216,2]
[366163809,1750095056107,-490.0,0.00016216,2]
[366163810,1750095056117,-250.0,0.00016216,2]
[366163811,1750095056127,-490.0,0.00016216,2]
[366163812,1750095056137,-490.0,0.00016216,2]
[366163813,1750095056148,-490.0,0.00016216,2]
[366163814,1750095056159,-490.0,0.00016216,2]
[366163815,1750095056168,-490.0,0.00016216,2]
[366163816,1750095056178,-490.0,0.00016216,2]
[366163817,1750095056187,-299.97,0.00016216,2]
[366163818,1750095056198,-490.0,0.00016216,2]
[366163819,1750095056208,-490.0,0.00016216,2]
[366163820,1750095056220,-490.0,0.00016216,2]
[366163821,1750095056230,-490.0,0.00016216,2]
[366163822,1750095056240,-490.0,0.00016216,2]
[366163823,1750095056249,-490.0,0.00016216,2]
[366163824,1750095056259,-490.0,0.00016216,2]
[366163825,1750095056269,-490.0,0.00016216,2]
[366163826,1750095056279,-851.75,0.00016216,2]
[366163827,1750095056288,-151.0,0.00016216,2]
[366163828,1750095056305,-151.0,0.00016216,2]
[366163829,1750095056322,-407.997566,0.00016216,2]
[366163830,1750095056333,-490.0,0.00016216,2]
[366163831,1750095056344,-407.997566,0.00016216,2]